Cogmind - Beta 16 @@@ ROGUE MODE // 2026.01.06 @ 20:36:46 Player: Skergy Result: Destroyed by G-47 Trooper with Particle Gun Performance ------------- Evolutions (1) 500 Regions Visited (2) 400 Robots Destroyed (8) 40 Value Destroyed (271) 271 Prototype IDs (0) 0 Alien Tech Used (0) 0 Bonus (0) 0 TOTAL SCORE: 1211 Bonus ------- None Cogmind --------- Core Integrity 0/400 Matter 162/300 Energy 80/100 System Corruption 0% Temperature Cool (9) Movement Core (100) Ox1 Location -9/Materials Parts ------- > --- POWER (1) -------- (None) > --- PROPULSION (3) --- (None) > --- UTILITY (3) ------ Medium Storage Unit Weight Redist. System Signal Interpreter > --- WEAPON (2) ------- Mining Claw > --- INVENTORY (10) --- Light Ion Engine Weight Redist. System Seismic Detector Plasma Cutter Peak State ------------ > --- POWER ------------ Ion Engine > --- PROPULSION ------- Aluminum Leg Aluminum Leg > --- UTILITY ---------- Medium Storage Unit Signal Interpreter Seismic Detector > --- WEAPON ----------- Plasma Cutter Mining Claw > --- INVENTORY -------- Light Ion Engine Flight Unit [Rating: 9] Favorites ----------- Power Ion Engine Engine Ion Engine Propulsion Light Treads Treads Light Treads Leg Aluminum Leg Flight Unit Flight Unit Utility Small Storage Unit Device Seismic Detector Storage Small Storage Unit Processor Targeting Computer Protection Light Armor Plating Weapon Assault Rifle Energy Gun Medium Laser Ballistic Gun Assault Rifle Special Weapon Plasma Cutter Slashing Weapon Mining Claw Build | -11 -10 -9 ------- Run | Yrd Mat Mat Slots Evolved 2 | . . 2 Power . | . . . Propulsion 1 | . . 1 Utility 1 | . . 1 Weapon . | . . . Parts Attached 20 | 6 9 5 Power 2 | 1 1 . Engine 2 | 1 1 . Core . | . . . Reactor . | . . . Propulsion 5 | 2 2 1 Treads 2 | 2 . . Leg 2 | . 2 . Wheel . | . . . Hover . | . . . Flight 1 | . . 1 Utility 8 | 1 3 4 Device 2 | . . 2 Storage 2 | 1 1 . Processor 3 | . 2 1 Hackware . | . . . Protection 1 | . . 1 Artifact . | . . . Weapon 5 | 2 3 . Energy Gun 2 | 1 1 . Energy Cannon . | . . . Ballistic Gun 1 | 1 . . Ballistic Cannon . | . . . Launcher . | . . . Special Weapon 1 | . 1 . Impact Weapon . | . . . Slashing Weapon 1 | . 1 . Piercing Weapon . | . . . Special Melee Weapon . | . . . Unidentified Prototypes . | . . . Parts Lost 11 | . 5 6 Power 1 | . . 1 Propulsion 5 | . 2 3 Utility 2 | . 1 1 Weapon 3 | . 2 1 Highest Loss Streak 5 | . 5 4 To Critical Strikes . | . . . Average Backups 6 | 2 7 3 Power . | . 1 1 Propulsion 2 | 1 2 . Utility 1 | . 1 1 Weapon 1 | . 1 . Tool/Special . | . . . Unused Backups 5 | . 3 2 Power 1 | . . 1 Propulsion . | . . . Utility 1 | . 1 . Weapon 2 | . 2 . Tool/Special 1 | . . 1 Average Slot Usage (%) 92 | . 96 72 Engine 12 | . 14 7 Treads 22 | . 27 . Leg 3 | . . 14 Device 1 | . . 8 Storage 13 | . 14 11 Processor 12 | . 12 11 Energy Gun 8 | . 10 . Ballistic Gun 11 | . 13 . Special Weapon 2 | . 1 6 Slashing Weapon 3 | . 1 10 Peak Build Rating 9 | 6 8 9 Average Rating 6 | 4 7 7 On Entrance 3 | . 6 4 Avg Prop Armor Cover (%) . | . . . Naked Turns . | . . . Heaviest Build 20 | 12 20 19 Greatest Support 40 | 40 40 20 Greatest Overweight (x) 4 | . . 4 Average Overweight (x) . | . . . Largest Inventory Capacity 10 | 8 10 10 Average Capacity 8 | 6 8 10 Most Carried 8 | 4 8 6 Average Carried 6 | 2 7 3 Final Capacity 10 | 8 10 10 Final Carried 6 | 4 6 4 Class Distribution -------------------- 100% | Mutant Dominant Class ---------------- Mutant | -10/Materials Mutant | -9/Materials Resources | -11 -10 -9 ----------- Run | Yrd Mat Mat Matter Collected 302 | 247 55 . Remotely . | . . . Salvage Created 336 | . 285 51 Parts 24 | . 20 4 Haulers Intercepted . | . . . Recyclers Shooed . | . . . Parts Field Recycled . | . . . Retrieved Matter . | . . . Parts Self-Destructed . | . . . Prevented . | . . . Parts Restored . | . . . Kills | -11 -10 -9 ------- Run | Yrd Mat Mat Combat Hostiles Destroyed 8 | . 7 1 Melee 1 | . . 1 Guns 7 | . 7 . Classes Destroyed 3 | . 2 1 Swarmer 2 | . 2 . Grunt 5 | . 5 . Sentry 1 | . . 1 Best Kill Streak 2 | . 2 1 Combat Bots Only 2 | . 2 1 Max Kills in Single Turn 1 | . 1 1 Gunslinging . | . . . Exploded . | . . . Melee 1 | . . 1 Uniques/NPCs Destroyed . | . . . Combat | -11 -10 -9 -------- Run | Yrd Mat Mat Hostile Shots Fired 182 | . 99 83 Missed 55 | . 29 26 Hits 127 | . 70 57 Projectile 127 | . 70 57 Critical Strikes 2 | . . 2 Damage Taken 1602 | . 820 782 Core 539 | . 136 403 Absorbed by Shields . | . . . Core Remaining (%) 72 | 100 45 . Volleys Fired 26 | . 26 . Largest 2 | . 2 . Hottest 70 | . 70 . Shots Fired 51 | . 51 . Gun 51 | . 51 . Cannon . | . . . Launcher . | . . . Special . | . . . Kinetic 26 | . 26 . Thermal 20 | . 20 . Explosive . | . . . Electromagnetic 5 | . 5 . Robot Hit Streak 8 | . 8 . Robot Miss Streak 3 | . 3 . Penetration Max . | . . . Secondary Targets 3 | . 3 . Max Gunslinging Chain 1 | . 1 . Shots Hit Robots 32 | . 29 3 Core Hits 14 | . 13 1 Critical Kills 1 | . 1 . Critical Parts Destroyed . | . . . Critical Strikes 1 | . 1 . Destroy 1 | . 1 . Melee Attacks 4 | . . 4 Impact . | . . . Slashing 4 | . . 4 Piercing . | . . . Sneak Attacks . | . . . Combat Hostiles . | . . . Follow-up Attacks . | . . . Damage Inflicted 468 | . 398 70 Guns 396 | . 396 . Cannons . | . . . Explosions . | . . . Melee 70 | . . 70 Ramming 2 | . 2 . Kinetic 198 | . 198 . Thermal 136 | . 136 . Explosive . | . . . Electromagnetic 62 | . 62 . Impact . | . . . Slashing 70 | . . 70 Piercing . | . . . Highest Corruption . | . . . Average Corruption . | . . . Corruption Purged . | . . . Corruption Blocked . | . . . Overload Shots . | . . . Overflow Damage . | . . . Projectiles . | . . . Explosions . | . . . Melee . | . . . Knockbacks . | . . . Impact . | . . . Kinetic . | . . . Secondary . | . . . Self-Inflicted Damage . | . . . Shots . | . . . Rammed 1 | . 1 . Targets Rammed 1 | . 1 . Kicked . | . . . Crushed . | . . . Highest Temperature 231 | . 231 6 Average Temperature 82 | . 83 6 Received Heat Transfer 750 | . 402 348 Siege Activations . | . . . Martial Activations . | . . . Shielding Activations . | . . . Robots Disrupted . | . . . Combat Hostiles . | . . . Robots Corrupted . | . . . Combat Hostiles . | . . . Parts Fried . | . . . Impact Corruptions . | . . . Robots Melted . | . . . Combat Hostiles . | . . . Parts Melted 1 | . 1 . Heat Transferred 407 | . 407 . Parts Sabotaged . | . . . Parts Stolen . | . . . Parts Stripped . | . . . Power Chain Reactions . | . . . Alert | -11 -10 -9 ------- Run | Yrd Mat Mat Maximum Alert Level . | . . . Low Security (%) 100 | 100 100 100 Level 1 . | . . . Level 2 . | . . . Level 3 . | . . . Level 4 . | . . . Level 5 . | . . . High Security . | . . . Max Security . | . . . Peak Influence 50 | . 50 20 Initial . | . . . Average 8 | . 11 3 Influence Increases 205 | . 175 30 Destroy 0b10 Robot/C 160 | . 140 20 Destroy Leader 30 | . 20 10 Disable Machine 15 | . 15 . Influence Decreases 205 | . 175 30 Time Decay 185 | . 165 20 Lost Part 20 | . 10 10 Squads Dispatched 3 | . 3 . Investigation 1 | . 1 . Extermination . | . . . Reinforcement 2 | . 2 . Assault . | . . . Garrison . | . . . Intercept . | . . . Searches Triggered . | . . . Construction Impeded . | . . . Haulers Reinforced . | . . . Active Scanning Responses . | . . . Cargo Convoy Interrupts . | . . . Stealth | -11 -10 -9 --------- Run | Yrd Mat Mat Distress Signals 3 | . 3 . Communications Jammed . | . . . Distress Signals . | . . . Times Spotted 29 | . 23 6 Peak Tracking Total 10 | . 10 5 Tactical Retreats . | . . . Traps | -11 -10 -9 ------- Run | Yrd Mat Mat Traps Triggered 1 | . 1 . Indirectly . | . . . Trap Hack Attempts . | . . . Triggered . | . . . Disarmed . | . . . Reprogrammed . | . . . Reused . | . . . Traps Extracted . | . . . Installed . | . . . Triggered . | . . . Machines | -11 -10 -9 ---------- Run | Yrd Mat Mat Machines Disabled 1 | . 1 . Max in Single Turn 1 | . 1 . Machines Repaired . | . . . Machines Dismantled 1 | . 1 . Machines Sabotaged . | . . . Overloaded Fab Kills . | . . . Hacking | -11 -10 -9 --------- Run | Yrd Mat Mat Machines Accessed 6 | . 4 2 Terminals 5 | . 3 2 Fabricators . | . . . Repair Stations . | . . . Recycling Units 1 | . 1 . Scanalyzers . | . . . Garrison Access . | . . . Total Hacks 19 | . 14 5 Successful 4 | . 4 . Failed 15 | . 10 5 Catastrophic 2 | . 2 . Database Lockouts . | . . . Manual 16 | . 11 5 Terminals 14 | . 9 5 Fabricators . | . . . Repair Stations . | . . . Recycling Units 5 | . 5 . Scanalyzers . | . . . Garrison Access . | . . . Terminal Hacks . | . . . Fabricator Hacks . | . . . Repair Station Hacks . | . . . Recycling Unit Hacks 2 | . 2 . Report Inventory 1 | . 1 . Retrieve Components 1 | . 1 . Scanalyzer . | . . . Garrison Access Hacks . | . . . Unauthorized Hacks 2 | . 2 . Terminals . | . . . Fabricators . | . . . Repair Stations . | . . . Recycling Units 2 | . 2 . Reject 1 | . 1 . Recyclers 1 | . 1 . Scanalyzers . | . . . Garrison Access . | . . . Data Cores Recovered . | . . . Used . | . . . Hacking Detections 6 | . 4 2 Full Trace Events 1 | . 1 . Feedback Events . | . . . Feedback Blocked . | . . . Robot Schematics Acquired . | . . . Robots Built . | . . . Authchips . | . . . Time . | . . . Total Robot Build Rating . | . . . Part Schematics Acquired . | . . . Parts Built . | . . . Authchips . | . . . Time . | . . . Total Part Build Rating . | . . . Part Studies Acquired . | . . . Parts Repaired . | . . . Time . | . . . Parts Recycled . | . . . Recycled Matter . | . . . Retrieved Matter . | . . . Retrieved Components 9 | . 9 . Parts Scanalyzed . | . . . Part Schematics Acquired . | . . . Parts Damaged . | . . . Bothacking | -11 -10 -9 ------------ Run | Yrd Mat Mat Used RIF Installer . | . . . Robots Hacked . | . . . Non-combat . | . . . Combat . | . . . Robot Hacks Applied . | . . . Relay Couplers Released . | . . . Fabnet Peak Effective % . | . . . Robots Rewired . | . . . Allies Hacked . | . . . Hacks Repelled . | . . . Allies | -11 -10 -9 -------- Run | Yrd Mat Mat Total Allies . | . . . Largest Group . | . . . Highest-Rated Group . | . . . Highest-Rated Ally . | . . . Total Orders . | . . . Ally Attacks . | . . . Total Damage . | . . . Kills . | . . . Allies Corrupted . | . . . Allies Melted . | . . . Intel | -11 -10 -9 ------- Run | Yrd Mat Mat Active Infowar (turns) 115 | . . 115 Seismic 115 | . . 115 Robot Analysis Total . | . . . Derelict Logs Recovered . | . . . Drone Launches . | . . . Drone Recoveries . | . . . Exploration | -11 -10 -9 ------------- Run | Yrd Mat Mat Turns Passed 813 | 72 608 133 Spaces Moved 430 | 42 311 77 Core 17 | 6 . 11 Treads 336 | 36 300 . Legs 77 | . 11 66 Wheels . | . . . Hover . | . . . Flight . | . . . Fastest Speed 50 | 50 120 120 Average Speed 153 | 144 158 138 Slowest Speed 250 | 160 160 250 Overloaded Moves . | . . . Propulsion Burnouts . | . . . Robots Hopped . | . . . Potential Cave-ins . | . . . Cave-ins Triggered . | . . . Exploration Rate (%) 24 | 4 57 11 Regions Visited 2 Branch Regions . Pre-discovered Areas . | . . . Known Exits Taken . | . . . Unknown Exits Taken 2 | 1 1 . Scrap Searched . | . . . Spaces Dug . | . . . Terrain Destroyed . | . . . Melee . | . . . Projectile . | . . . AOE . | . . . Terrain Rammed . | . . . Walls Destroyed . | . . . Machines Disabled . | . . . Actions | -11 -10 -9 --------- Run | Yrd Mat Mat Total 512 | 51 367 94 Wait 3 | . 3 . Move 428 | 41 310 77 Hop . | . . . Pick Up 15 | 4 7 4 Fast Attach 9 | 6 3 . Attach 9 | . 2 7 Detach 2 | . 1 1 Swap 4 | . 4 . Drop 6 | . 6 . Fire 26 | . 26 . Melee 4 | . . 4 Ram . | . . . Kick . | . . . Crush 1 | . 1 . Escape Stasis . | . . . Rewire . | . . . Trap . | . . . Miscellaneous 5 | . 4 1 Route ------- -11/Scrapyard -10/Materials -9/Materials History --------- Turn | Location | Event 15 | -11/Scrapyard | Discovered new exit (range 16) 73 | -11/Scrapyard | Entered Materials 305 | -10/Materials | Build established: Mutant 535 | -10/Materials | Discovered new exit (range 4) 673 | -10/Materials | Core integrity fell below 50% 681 | -10/Materials | Entered another Materials area 681 | -9/Materials | Evolved 2 slots: Propulsion x1, Utility x1 697 | -9/Materials | Lost 5 parts (2n1u2w) 792 | -9/Materials | Core integrity fell below 50% 802 | -9/Materials | Core integrity fell below 20% 806 | -9/Materials | Lost 4 parts (1p2n1w) 814 | -9/Materials | Destroyed by G-47 Trooper with Particle Gun Last Messages --------------- 00740_ Current location identified: Materials 00748_ Connecting with Terminal... 00760_ Acquired Weight Redist. System. 00761_ K-01 Serf collects debris. 00764_ Critical hit (Burn: +37). 00764_ Plasma Cutter destroyed. 00766_ Acquired Weight Redist. System. 00769_ Aluminum Leg destroyed. 00772_ Ion Engine destroyed. 00775_ Critical hit (Burn: +37). 00775_ Aluminum Leg destroyed. 00780_ Y-45 Defender destroyed. 00786_ Acquired Lgt. Armor Plating. 00788_ R-06 Scavenger collects Heat Sink. 00791_ R-06 Scavenger collects Hvy. Assault Rifle. 00802_ O-16 Technician: "IFF HANDSHAKE FAILED. SECURING TERMINAL." 00807_ Flight Unit destroyed. 00812_ Lgt. Armor Plating destroyed. Map ----- +----------------------------------------------------+ | ???????# # #??????????????????????????????? | | ???????######## #??????????????????????????????? | | ??????????????# #??????????????????????????????? | | ??????????????# #??????????????????????????????? | | ??????????????# #??????????????????????????????? | | ??????????????# ^ #### #????##???????????????????? | | ??????????????# ^ ??????????????????? | | ?????????????## ##########+##??????????????????? | | ?????????????# ## #??????????????????? | | ?????????????# " ## """#??????????????????? | | ?????????????# "T + Y"#??????????????????? | | ?????????????# ## """#??????????????????? | | ?????????????# ## ! ! ##?????????????????? | | ??????????######+#### !!! #?????????????????? | | ??????????# # !! ##?????????????????? | | ??????????# T # Y #??????????????????? | | ??????????# #####/#####??????????????????? | | ??????????# """ """ #?# g% #????????????????????? | | ??????????# """ """ #?# gg ######???????????????? | | ??????????# """ """ #?# + #???????????????? | | ??????????# #?# =##! [#???????????????? | | ??????????# #?# #????????????????????? | | ??????????###########?## ##????????????????????? | | ???????????????????????# #?????????????????????? | | ???????????????????????# #?????????????????????? | | ???????????????????????# @ #?????????????????????? | | ???????????????????????# #?????????????????????? | | ?????????????????????? ????????????????????? | | ????????????????????? ???????????????????? | | ???????????????????? ??????????????????? | | ???????????????????##### ####/?????????????????? | | ???????????????????????# #?????????????????????? | | ???????????????????????# #?????????????????????? | | ??????????????????????? ?????????????????????? | | ???????????????????????# #?????????????????????? | | ???????????????????????# #?????????????????????? | | ???????????????????????# #?????????????????????? | | ???????????????????????# #?????????????????????? | | ???????????????????????? #?????????????????????? | | ???????????????????????? ??????????????????????? | | ???????????????????????? ??????????????????????? | | ?????????????????????????????????????????????????? | | ?????????????????????????????????????????????????? | | ?????????????????????????????????????????????????? | | ?????????????????????????????????????????????????? | | ?????????????????????????????????????????????????? | | ?????????????????????????????????????????????????? | | ?????????????????????????????????????????????????? | | ?????????????????????????????????????????????????? | | ?????????????????????????????????????????????????? | +----------------------------------------------------+ Best States ------------- Heat Dissipation 28 Energy Generation 10 Energy Capacity 250 Matter Stores 300 Matter Capacity 300 Sight Range 16 Terrain Scan Density 10 Armor Coverage 150 Evasion (%) 55 Targeting Accuracy 5 Recoil Reduction 2 Item Schematics ----------------- None Robot Schematics ------------------ None Fabricated ------------ Nothing Repaired ---------- Nothing Studied --------- None Alien Tech Used ----------------- None Achievements -------------- None Challenges ------------ None Game ------ Seed GuidedShockboltMinigun Manual? 0 Play Time 00:10:38 Cumulative 100.5 hours Start 2026.01.06 @ 20:28:16 End 2026.01.06 @ 20:36:46 Sessions 1 Manual Loads 0 Difficulty Rogue Special Mode None Game No. 114 Rogue 114 Adventurer 0 Explorer 0 Win Type - Total 3 Types 3/0/0/0/0/0/0/0/0/0 Lore% 61 Gallery% 49 Achievement% 34 Wizard Run 0 Options --------- Layout 1 ASCII 0 Keyboard 1 Movement Vi Keybinds 0 Fullscreen 2 Font 24/Terminus Map View 50x35 Zoom Use 0% Tactical HUD 1 Map Filters NONE Filters NONE Steam 1 RUN: f1ff3830-deb1-4cb4-a653-121fae9db385